Department Family,Entity,Date,Expense Type,Expense Area,Supplier,Transaction Number,Amount
DOH,London Ambulance Service NHS Trust,07/09/2017,Rent,Neasden Estates,Workman Llp,344410,32293.8
DOH,London Ambulance Service NHS Trust,07/09/2017,Service Charges,Neasden Estates,Workman Llp,344410,1314.9
DOH,London Ambulance Service NHS Trust,01/09/2017,Cleaning Of Premises,Estate Management,Lakethorne Ltd,348225,87544.13
DOH,London Ambulance Service NHS Trust,01/09/2017,Medical & Surgical Items,South Area Managed Stores,Physio-Control Uk Sales Ltd,348479,33828
DOH,London Ambulance Service NHS Trust,01/09/2017,Rent,Neasden Estates,Workman Llp,350222,32293.8
DOH,London Ambulance Service NHS Trust,07/09/2017,Service Charges,Neasden Estates,Workman Llp,350222,1314.9
DOH,London Ambulance Service NHS Trust,01/09/2017,Lease Costs For Ops Vehicles,Non Emergency Transport,Tp Leasing Ltd,350400,74144.03
DOH,London Ambulance Service NHS Trust,01/09/2017,Lease Costs For Ops Vehicles,Non Emergency Transport,Tp Leasing Ltd,350401,42368.02
DOH,London Ambulance Service NHS Trust,01/09/2017,Cac Tools Maintenance,Cad Support,Northrop Grumman Information Technology,350758,48166.56
DOH,London Ambulance Service NHS Trust,01/09/2017,Rent,Neasden Estates,Workman Llp,350786,-32293.8
DOH,London Ambulance Service NHS Trust,01/09/2017,Service Charges,Neasden Estates,Workman Llp,350786,-1314.9
DOH,London Ambulance Service NHS Trust,01/09/2017,Data Network Rental,Networks,Bt Global Services,350804,37666.94
DOH,London Ambulance Service NHS Trust,01/09/2017,Data Network Rental,Networks,Bt Global Services,350807,36500.65
DOH,London Ambulance Service NHS Trust,01/09/2017,Rent,Maritime House Training Centre,Dooba Investments Iii Limited,350873,26076.6
DOH,London Ambulance Service NHS Trust,01/09/2017,Service Charges,Maritime House Training Centre,Dooba Investments Iii Limited,350873,11845.91
DOH,London Ambulance Service NHS Trust,01/09/2017,Rent,Maritime House Training Centre,Dooba Investments Iii Limited,350874,26512.2
DOH,London Ambulance Service NHS Trust,01/09/2017,Service Charges,Maritime House Training Centre,Dooba Investments Iii Limited,350874,12570.6
DOH,London Ambulance Service NHS Trust,01/09/2017,Rent,Maritime House Training Centre,Dooba Investments Iii Limited,350875,26512.2
DOH,London Ambulance Service NHS Trust,01/09/2017,Service Charges,Maritime House Training Centre,Dooba Investments Iii Limited,350875,12570.6
DOH,London Ambulance Service NHS Trust,13/09/2017,Buildings,Capital,Herronway Ltd,350892,45057.6
DOH,London Ambulance Service NHS Trust,01/09/2017,Accident Repairs,Hanwell (B3) Station,R. And J.Motors Ltd,350938,46744.76
DOH,London Ambulance Service NHS Trust,01/09/2017,Data Network Rental,Networks,Bt Plc,351546,189459.07
DOH,London Ambulance Service NHS Trust,01/09/2017,Phone & Fax Maint & Repair,Networks,Bt Plc,351549,33988.8
DOH,London Ambulance Service NHS Trust,01/09/2017,Computer Hardware,Capital,Bt Plc,351550,33426.05
DOH,London Ambulance Service NHS Trust,06/09/2017,It Technical Support,Cad Support,Northgate Public Services (Uk) Ltd,351634,47519.27
DOH,London Ambulance Service NHS Trust,01/09/2017,Taxis & Mini Cabs,Sub-Contracted Transport,Addison Lee,351694,48371.28
DOH,London Ambulance Service NHS Trust,13/09/2017,Private Ambulance Hire,Ops Central - Private Amb,Medical Services Ltd,351883,55319.56
DOH,London Ambulance Service NHS Trust,06/09/2017,Private Ambulance Hire,Ops Central - Private Amb,Medical Services Ltd,351884,64694.73
DOH,London Ambulance Service NHS Trust,06/09/2017,Private Ambulance Hire,Ops Central - Private Amb,Medical Services Ltd,351885,55538.28
DOH,London Ambulance Service NHS Trust,06/09/2017,Private Ambulance Hire,Ops Central - Private Amb,Medical Services Ltd,351886,55633.84
DOH,London Ambulance Service NHS Trust,06/09/2017,Private Ambulance Hire,Ops Central - Private Amb,St John Ambulance Londonprince,352033,25592.03
DOH,London Ambulance Service NHS Trust,07/09/2017,Service Charges,Neasden Estates,Workman Llp,352395,-33005.44
DOH,London Ambulance Service NHS Trust,06/09/2017,Data Network Rental,Networks,Vodafone Corporate Limited,352549,117216.39
DOH,London Ambulance Service NHS Trust,13/09/2017,Tyres,Fleet Support Services,Ats Euromaster Ltd,352690,52733.15
DOH,London Ambulance Service NHS Trust,13/09/2017,Cac Tools Maintenance,Cad Support,Northrop Grumman Information Technology,352691,48166.56
DOH,London Ambulance Service NHS Trust,13/09/2017,Cleaning Of Vehicles Makeready,Corporate Logistics,Interserve Hospital Services,352981,258074.86
DOH,London Ambulance Service NHS Trust,13/09/2017,Ambulance Equipment,Ambulance Procurement,Ferno (Uk),352984,34776
DOH,London Ambulance Service NHS Trust,20/09/2017,Cleaning Of Premises,Estate Management,Lakethorne Ltd,353071,87544.13
DOH,London Ambulance Service NHS Trust,13/09/2017,Buildings,Capital,Bowmite Limited,353177,40823.39
DOH,London Ambulance Service NHS Trust,20/09/2017,Professional Fees,Q-Volunteering Grant,Royal Voluntary Service,353487,46229
DOH,London Ambulance Service NHS Trust,13/09/2017,Rent,Cody Road Ambulance Station,Cbre Ltd,353537,79650
DOH,London Ambulance Service NHS Trust,13/09/2017,Service Charges,Cody Road Ambulance Station,Cbre Ltd,353537,2905.02
DOH,London Ambulance Service NHS Trust,13/09/2017,Electricity,Estate Management,British Gas,353550,40749.59
DOH,London Ambulance Service NHS Trust,25/09/2017,Rent,Hazardous Area Response Team,Jones Lang Lasalle (Rent Only),353604,30705
DOH,London Ambulance Service NHS Trust,25/09/2017,Service Charges,Hazardous Area Response Team,Jones Lang Lasalle (Rent Only),353604,28059
DOH,London Ambulance Service NHS Trust,25/09/2017,Consultancy Fees,Director Of Ops,Working Time Solutions Ltd,354109,36936
DOH,London Ambulance Service NHS Trust,20/09/2017,Occupational Health Fees,Staff Support,People Asset Management Ltd,354217,77275.4
DOH,London Ambulance Service NHS Trust,20/09/2017,Capitalised Software,Capital,Northrop Grumman Information Technology,354243,25996.5
DOH,London Ambulance Service NHS Trust,25/09/2017,Training Accommodation,International Recruitment 1617,The Independents Hotel Reservations Ltd,354661,42336
DOH,London Ambulance Service NHS Trust,04/09/2017,Ensign Insurance Debtor,Control Accounts,QBE International Insurance T/A Ensign,46890,270690.83
DOH,London Ambulance Service NHS Trust,27/09/2017,Medical Gas,Director Of Ops,British Oxygen,47235,126867.88
DOH,London Ambulance Service NHS Trust,29/09/2017,Fuel,Director Of Ops,BP Oil,47008,192778.86
DOH,London Ambulance Service NHS Trust,22/09/2017,Child Care Arrangements,Payroll,Computerserve Vouchers,47041,28492.16
DOH,London Ambulance Service NHS Trust,18/09/2017,CNST Contributions,Legal Services,NHSLA,47008,278525
DOH,London Ambulance Service NHS Trust,18/09/2017,Liability to 3rd Party Scheme,Legal Services,NHSLA,47008,35774.1
DOH,London Ambulance Service NHS Trust,18/09/2017,Property Expenses Scheme,Legal Services,NHSLA,47008,907.2
DOH,London Ambulance Service NHS Trust,18/09/2017,Fuel,Director Of Ops,BP Oil,47008,204870.42
